bitfinex/quotes_ETHUSD_20260310
["timestamp","ask_amount","ask_price","bid_price","bid_amount"]
[1773124703685,0.002,2047.1,2047.0,0.001]
[1773124705920,0.002,2047.3,2047.0,1.22217657]
[1773124708613,0.002,2047.6,2047.3,1.22117657]
[1773124709315,2.41867308,2047.6,2047.3,1.22117657]
[1773124710310,1.1977276,2047.6,2047.3,1.22117657]
[1773124710504,2.41869028,2047.6,2047.3,1.22117657]
[1773124711817,2.41869028,2047.6,2047.2,1.22117657]
[1773124714521,1.2616092,2047.5,2047.2,1.22117657]
[1773124716017,1.2616092,2047.5,2047.2,1.22217657]
[1773124716392,0.002,2047.4,2047.2,1.22217657]
[1773124718500,0.002,2047.4,2047.2,0.001]
[1773124718501,1.2636092,2047.4,2047.2,0.001]
[1773124719102,2.48470356,2047.4,2047.2,0.001]
[1773124719955,1.2616092,2047.3,2047.2,0.001]
[1773124721229,1.2616092,2047.3,2046.8,0.001]
[1773124721230,1.2616092,2047.2,2046.8,0.001]
[1773124722214,1.2616092,2047.2,2046.8,1.25062756]
[1773124723935,1.2212398,2047.1,2046.8,1.25062756]
[1773124728732,1.2212398,2047.1,2047.0,0.001]
[1773124731233,2.48283819,2047.2,2047.0,0.001]
[1773124731739,1.22307598,2047.4,2047.0,1.25062756]
[1773124732036,0.002,2047.4,2047.0,1.25062756]
[1773124732510,0.002,2047.6,2047.4,1.25925641]
[1773124732711,2.89814254,2047.9,2047.5,1.25925641]
[1773124733306,2.89814254,2047.9,2047.2,1.25925641]
[1773124733307,1.20986798,2047.8,2047.2,1.25925641]
[1773124734836,1.20986798,2047.8,2047.0,0.001]
[1773124734837,1.20986798,2047.6,2047.0,0.001]
[1773124735136,1.20986798,2047.4,2047.0,0.001]
[1773124735307,1.20986798,2047.2,2047.0,0.001]
[1773124736335,2.43097568,2047.4,2047.0,1.26025641]
[1773124736526,1.20986798,2047.4,2047.0,1.26025641]
[1773124736729,2.43085145,2047.6,2047.0,1.26025641]
[1773124737039,1.22098347,2047.6,2047.0,1.26025641]
[1773124737242,1.20986798,2047.5,2047.0,1.26025641]
[1773124738542,1.20986798,2047.6,2047.1,1.25925641]
[1773124740032,0.002,2047.4,2047.1,1.25925641]
[1773124741217,0.002,2047.4,2047.2,1.25925641]
[1773124743543,1.23383202,2047.3,2047.0,0.001]
[1773124743747,0.002,2047.4,2047.0,1.19722979]
[1773124743937,1.23583202,2047.4,2047.1,1.19622979]
[1773124744239,0.002,2047.4,2047.1,1.19622979]
[1773124744952,0.002,2047.6,2047.1,0.95505855]
[1773124745122,2.4546567,2047.8,2047.5,1.19622979]
[1773124745320,2.45465464,2047.8,2047.5,1.19622979]
[1773124745516,4.3991019,2047.9,2047.5,1.19622979]
[1773124746268,1.23383202,2047.8,2047.3,1.19622979]
[1773124747258,1.23383202,2047.8,2047.3,2.41734741]
[1773124747463,1.23383202,2047.8,2047.3,1.19622979]
[1773124748670,1.23383202,2047.7,2047.3,1.19622979]
[1773124749788,0.46747106,2047.9,2047.6,1.19622979]
[1773124751469,1.23383202,2047.8,2047.5,1.19622979]
[1773124751673,1.23383202,2047.8,2047.1,1.22118014]
[1773124751857,1.23383202,2047.8,2047.4,0.001]
[1773124752062,1.23383202,2047.8,2047.5,1.19622979]
[1773124752264,0.002,2047.7,2047.5,1.19622979]
[1773124758073,0.002,2047.7,2047.4,1.19722979]
[1773124758074,1.23583202,2047.7,2047.4,1.19722979]
[1773124758462,1.23583202,2047.7,2047.4,2.41827999]
[1773124758865,0.46747106,2047.9,2047.5,1.19622979]
[1773124759374,0.46747106,2047.9,2047.6,1.19622979]
[1773124760877,2.45454305,2048.0,2047.6,2.15128834]
[1773124760878,1.23383202,2048.0,2047.6,2.15128834]
[1773124761176,0.002,2048.2,2047.7,1.19622979]
[1773124761379,1.23383202,2048.1,2047.8,1.19622979]
[1773124762085,1.23583202,2048.2,2047.8,1.19622979]
[1773124763378,1.23383202,2048.0,2047.6,3.37218584]
[1773124763583,1.23383202,2048.0,2047.7,1.19622979]
[1773124765873,1.22076273,2047.9,2047.5,1.19622979]
[1773124766078,1.23383202,2047.8,2047.5,2.41722435]
[1773124766784,1.23383202,2048.0,2047.6,1.19622979]
[1773124768282,1.23383202,2048.0,2047.6,2.41714888]
[1773124769289,1.23383202,2047.9,2047.6,2.41716311]
[1773124769690,1.23383202,2047.9,2047.7,0.001]
[1773124770159,0.002,2047.8,2047.7,0.001]
[1773124775593,1.22964512,2048.0,2047.7,0.001]
[1773124775779,0.002,2048.0,2047.8,1.25149265]
[1773124776999,1.22764512,2047.9,2047.7,0.001]
[1773124780695,1.22764512,2047.8,2047.4,0.001]
[1773124782493,1.22088196,2047.7,2047.4,0.001]
[1773124782668,1.22764512,2047.6,2047.4,0.001]
[1773124784527,2.44864634,2047.5,2047.4,0.001]
[1773124784817,1.22764512,2047.5,2047.4,0.001]
[1773124790618,1.17250786,2047.7,2047.4,0.001]
[1773124791200,1.17050786,2047.6,2047.4,0.001]
[1773124794221,1.17050786,2047.5,2047.4,0.001]
[1773124795725,0.002,2047.7,2047.4,1.19122411]
[1773124796020,1.17250786,2047.7,2047.4,1.19122411]
[1773124796396,1.17250786,2047.7,2047.4,2.41228377]
[1773124796624,0.002,2047.7,2047.5,1.19022411]
[1773124797121,0.002,2047.9,2047.5,1.19022411]
[1773124797623,0.002,2047.9,2047.5,1.18865438]
[1773124797822,0.002,2048.2,2047.8,1.19022411]
[1773124798023,1.17050786,2048.5,2048.1,1.19022411]
[1773124798190,1.17250786,2048.6,2048.1,1.19022411]
[1773124798518,1.17050786,2048.9,2048.5,2.4105792]
[1773124798818,1.17050786,2048.9,2048.5,1.19022411]
[1773124799021,1.17050786,2048.9,2048.5,2.41061946]
[1773124799238,1.21998828,2049.2,2048.7,1.19022411]
[1773124799533,2.39046848,2049.3,2048.7,1.19022411]
[1773124799904,2.39046848,2049.3,2048.4,1.19022411]
[1773124799905,1.17050786,2049.2,2048.4,1.19022411]
[1773124800638,2.39055568,2049.1,2048.5,1.19022411]
[1773124801106,1.17050786,2049.1,2048.5,1.19022411]
[1773124801711,1.17050786,2049.1,2048.2,1.22054138]
[1773124801913,1.17050786,2049.1,2048.1,1.19022411]
[1773124802117,1.17050786,2049.1,2047.8,1.2207841]
[1773124802319,1.17050786,2049.1,2047.9,1.19022411]
[1773124802507,1.17050786,2048.9,2047.9,1.19022411]
[1773124802703,1.17050786,2048.9,2047.9,2.41097927]
[1773124802923,1.17050786,2048.9,2048.0,1.19022411]
[1773124804621,2.39071095,2048.9,2048.2,1.13211045]
[1773124805327,2.39071095,2048.9,2048.0,2.35276694]
[1773124805328,1.13797872,2048.7,2048.0,2.35276694]
[1773124806532,1.13797872,2048.7,2048.1,1.13211045]
[1773124806723,0.002,2048.7,2048.3,1.13211045]
[1773124807530,1.22228969,2048.7,2048.3,1.13211045]
[1773124807731,2.35826841,2048.7,2048.1,1.13211045]
[1773124807904,2.35826841,2048.7,2048.1,2.35275118]
[1773124808231,1.13597872,2048.6,2047.7,1.13211045]
[1773124808428,2.38321913,2048.5,2047.6,0.001]
[1773124808633,1.13597872,2048.1,2047.6,0.001]
[1773124810138,1.22056667,2048.3,2047.6,1.13311045]
[1773124810335,1.13597872,2048.2,2047.6,1.13311045]
[1773124811606,1.22064352,2048.1,2047.6,2.3540358]
[1773124812602,1.22060901,2048.2,2047.7,1.13211045]
[1773124812808,3.82746618,2048.4,2047.7,1.13211045]
[1773124813334,1.13597872,2048.3,2047.7,1.13211045]
[1773124813912,2.35656264,2048.2,2047.7,1.13211045]
[1773124814122,2.35656264,2048.2,2047.6,0.001]
[1773124814123,1.13597872,2048.1,2047.6,0.001]
[1773124814730,1.22058392,2048.2,2047.7,1.13211045]
[1773124816239,1.13597872,2048.3,2047.8,1.22082234]
[1773124816419,2.35650861,2048.3,2047.7,2.35295202]
[1773124816619,2.35650861,2048.3,2047.8,1.13211045]
[1773124818444,2.35650861,2048.3,2047.9,0.001]
[1773124818848,1.475,2048.6,2047.9,1.13311045]
[1773124818849,1.22043767,2048.5,2047.9,1.13311045]
[1773124819055,1.13597872,2048.4,2047.9,0.001]
[1773124819709,1.13597872,2048.4,2047.7,0.001]
[1773124820517,1.13597872,2048.2,2047.7,0.001]
[1773124820928,1.13597872,2048.1,2047.7,0.001]
[1773124822821,2.35668184,2048.0,2047.7,0.001]
[1773124823363,1.13597872,2047.9,2047.7,0.001]
[1773124824643,1.13597872,2047.9,2047.6,0.001]
[1773124824844,2.35680106,2047.8,2047.6,0.001]
[1773124825817,1.22073279,2048.0,2047.6,0.001]
[1773124826022,2.35665828,2048.1,2047.6,1.13311045]
[1773124826737,1.13597872,2048.0,2047.6,0.001]
[1773124826938,2.35674145,2047.9,2047.6,0.001]
[1773124829034,1.13597872,2047.8,2047.4,0.001]
[1773124831173,1.13597872,2047.6,2047.5,0.001]
[1773124832032,1.13597872,2047.6,2047.3,0.001]
[1773124833562,2.30601736,2047.5,2047.3,0.001]
[1773124833969,1.22100122,2047.5,2047.3,0.001]
[1773124834361,1.22100122,2047.5,2047.3,1.15556268]
[1773124835148,2.70198667,2047.6,2047.3,0.001]
[1773124837465,3.78700281,2047.6,2047.3,0.001]
[1773124838270,1.08501614,2047.5,2047.3,0.001]
[1773124840153,1.22106085,2047.4,2047.3,0.001]
[1773124840765,1.08501614,2047.3,2047.0,0.001]
[1773124841477,1.08501614,2047.1,2046.5,1.15556268]
[1773124842150,2.3063156,2047.0,2046.5,1.15556268]
[1773124842351,1.22129946,2047.0,2046.7,1.15556268]
[1773124843260,2.3063156,2047.0,2046.7,0.001]
[1773124844077,1.22129946,2047.0,2046.7,1.15556268]
[1773124844250,1.08501614,2047.1,2046.7,1.15556268]
[1773124844570,1.08501614,2047.1,2046.7,0.001]
[1773124845375,2.57101614,2047.2,2047.0,0.001]
[1773124846384,1.2212398,2047.1,2047.0,0.001]
[1773124846892,2.30625594,2047.1,2047.0,0.001]
[1773124847253,1.2212398,2047.1,2047.0,0.001]
[1773124848464,2.30625594,2047.1,2047.0,0.001]
[1773124848771,1.2212398,2047.1,2047.0,0.001]
[1773124849782,2.30625594,2047.1,2047.0,0.001]
[1773124851961,1.14782199,2047.0,2046.5,0.001]
[1773124853989,2.36918111,2046.9,2046.5,0.001]
[1773124854953,2.36918111,2046.9,2046.5,1.17603672]
[1773124857290,6.37077617,2047.2,2046.6,0.71285724]
[1773124857291,1.22122093,2047.2,2046.6,0.71285724]
[1773124857459,1.14782199,2047.1,2046.6,0.71285724]
[1773124857659,1.14782199,2047.1,2046.7,0.71254494]
[1773124857860,0.002,2046.9,2046.7,0.001]
[1773124858056,0.002,2046.9,2046.7,0.71254494]
[1773124862923,0.002,2046.9,2046.8,0.74680065]
[1773124863094,0.002,2047.1,2046.8,0.74480065]
[1773124864236,0.002,2047.1,2046.9,1.22135912]
[1773124864518,1.22309311,2047.4,2047.0,0.74501072]
[1773124864682,0.002,2047.4,2047.0,0.74501072]
[1773124866284,0.002,2047.4,2047.2,0.74206835]
[1773124866901,0.002,2047.6,2047.2,0.74206835]
[1773124868439,0.002,2047.6,2047.3,1.95859492]
[1773124868803,0.002,2047.9,2047.4,0.73547442]
[1773124869003,1.22278025,2047.9,2047.4,0.73547442]
[1773124869198,2.31386186,2047.9,2047.4,0.73547442]
[1773124869717,1.09108161,2047.8,2047.0,0.73389623]
[1773124869921,0.002,2047.2,2047.0,0.73389623]
[1773124870624,0.002,2047.2,2047.1,1.95360647]
[1773124872308,0.002,2047.4,2047.2,0.72916543]
[1773124872628,0.002,2047.7,2047.3,0.72916543]
[1773124873243,2.31396899,2047.7,2047.3,0.72916543]
[1773124873746,1.09108161,2047.6,2047.2,1.22113238]
[1773124874126,1.09108161,2047.6,2047.2,1.94879336]
[1773124877700,2.31203484,2047.6,2047.2,0.72766098]
[1773124877934,2.31203484,2047.6,2046.9,0.001]
[1773124877935,1.09108161,2047.5,2046.9,0.001]
[1773124879137,1.09108161,2047.3,2046.9,0.72041976]
[1773124879337,4.88576636,2047.7,2046.9,0.72041976]
[1773124879338,1.09308161,2047.7,2046.9,0.72041976]
[1773124879541,1.09108161,2047.6,2046.9,0.72041976]
[1773124883136,1.22291677,2047.7,2047.1,0.71265841]
[1773124883436,1.09108161,2047.6,2047.1,0.71365841]
[1773124883944,0.002,2047.4,2047.1,0.71365841]
[1773124885328,0.002,2047.4,2047.2,0.70922633]
[1773124885551,1.09108161,2047.3,2047.1,0.001]
[1773124885759,0.002,2047.4,2047.1,0.001]
[1773124885760,1.09308161,2047.4,2047.1,0.001]
[1773124886852,0.002,2047.4,2047.1,1.92798447]
[1773124887165,0.002,2047.4,2047.1,1.92797085]
[1773124887327,0.002,2047.4,2047.1,0.70677143]
[1773124887526,0.002,2047.4,2047.1,1.92800305]
[1773124887829,0.002,2047.4,2047.1,0.70677143]
[1773124888468,0.002,2047.4,2047.2,0.70227802]
[1773124890335,0.002,2047.4,2047.1,0.001]
[1773124890534,0.002,2047.4,2047.1,0.69976558]
[1773124890749,0.002,2047.4,2047.2,0.69876558]
[1773124891059,1.09308161,2047.4,2047.1,0.001]
[1773124892069,1.09308161,2047.4,2047.1,1.22222443]
[1773124892275,0.002,2047.4,2047.1,0.69799406]
[1773124896095,0.002,2047.6,2047.2,0.69100898]
[1773124896750,0.002,2047.7,2047.1,3.60946977]
[1773124896751,0.002,2047.7,2047.5,0.68918911]
[1773124898176,0.002,2047.7,2047.6,1.90843139]
[1773124898350,0.002,2047.9,2047.6,1.90843139]
[1773124901086,1.08731021,2047.9,2047.5,1.22100122]
[1773124901287,1.08731021,2047.9,2047.4,1.22101309]
[1773124901443,1.08731021,2047.9,2047.3,5.56729654]
[1773124901444,1.08731021,2047.9,2047.3,1.9041018]
[1773124902576,0.002,2047.9,2047.4,0.67831824]
[1773124903546,0.002,2047.9,2047.6,0.67645481]
[1773124903957,0.002,2047.9,2047.5,1.22100122]
[1773124903958,1.08731021,2047.9,2047.5,1.22100122]
[1773124904255,1.08731021,2047.9,2047.5,1.89745603]
[1773124904657,1.08731021,2047.9,2047.6,0.67458472]
[1773124906850,1.08731021,2047.9,2047.6,1.89548184]
[1773124909980,0.002,2047.7,2047.6,1.89548184]
[1773124910189,1.08731021,2047.9,2047.6,1.89548184]
[1773124910392,1.66294955,2048.1,2047.7,2.05924704]
[1773124911560,1.66294955,2048.1,2047.7,1.10513321]
[1773124912283,1.82518165,2048.1,2047.7,1.10513321]
[1773124912586,1.05841509,2048.0,2047.7,1.10513321]
[1773124912787,1.05841509,2048.0,2047.7,2.32600969]
[1773124913187,1.05841509,2048.0,2047.6,1.10513321]
[1773124913761,1.05841509,2048.0,2047.7,1.22088196]
[1773124913963,1.05841509,2048.0,2047.7,2.32601517]
[1773124914509,1.05841509,2048.0,2047.6,1.22090674]
[1773124914793,1.05841509,2048.0,2047.5,1.10513321]
[1773124914794,1.05841509,2047.9,2047.5,1.10513321]
[1773124915000,1.05841509,2047.9,2047.4,1.22103651]
[1773124915170,1.05841509,2047.9,2047.4,1.10513321]
[1773124915392,1.05841509,2047.9,2047.3,2.32722548]
[1773124915588,1.05841509,2047.9,2047.3,1.22209227]
[1773124915816,1.05841509,2047.9,2047.4,1.10513321]
[1773124916003,2.27923743,2047.8,2047.4,1.10513321]
[1773124916504,1.05841509,2047.8,2047.4,2.32618818]
[1773124918510,1.05841509,2047.8,2047.5,1.10513321]
[1773124921824,1.05841509,2047.8,2047.7,0.001]
[1773124922526,1.05841509,2047.9,2047.7,0.001]
[1773124922717,1.06041509,2047.9,2047.7,0.001]
[1773124922930,2.28118118,2047.9,2047.7,0.001]
[1773124923522,1.06041509,2047.9,2047.7,0.001]
[1773124924218,2.28118267,2047.9,2047.7,0.001]
[1773124924619,2.28117832,2047.9,2047.7,0.001]
[1773124924820,0.002,2047.9,2047.7,1.10455606]
[1773124925414,0.60453446,2048.1,2047.8,1.10355606]
[1773124925740,1.13870095,2048.0,2047.7,1.10455606]
[1773124926149,1.74323541,2048.1,2047.7,1.10455606]
[1773124926922,1.74323541,2048.1,2047.7,2.32538394]
[1773124929227,1.74323541,2048.1,2047.8,1.10355606]
[1773124929620,0.60453446,2048.1,2047.8,1.10355606]
[1773124930250,1.74323541,2048.1,2047.7,0.001]
[1773124930457,1.74323541,2048.1,2047.7,1.10455606]
[1773124931042,1.13870095,2048.0,2047.7,1.10455606]
[1773124931456,1.13870095,2048.0,2047.7,0.001]
[1773124932345,1.13870095,2048.0,2047.7,1.22188152]
[1773124933431,1.13870095,2048.0,2047.7,1.10455606]
[1773124935369,1.13870095,2048.0,2047.7,2.32542941]
[1773124936366,1.13870095,2048.0,2047.9,0.001]
[1773124937168,1.13870095,2047.9,2047.7,0.001]
[1773124940164,1.22077682,2047.9,2047.7,0.001]
[1773124940368,1.13870095,2047.8,2047.7,0.001]
[1773124940771,1.13870095,2047.9,2047.7,0.001]
[1773124946790,1.74323541,2048.1,2047.8,2.05760055]
[1773124947093,1.13870095,2048.0,2047.7,1.10455606]
[1773124949666,1.13870095,2048.0,2047.9,0.001]
[1773124951500,2.35940407,2048.0,2047.9,0.001]
[1773124951702,0.60453446,2048.1,2047.5,1.22195265]
[1773124951703,1.13870095,2047.7,2047.5,0.001]
[1773124953721,1.13870095,2047.7,2047.2,1.09612528]
[1773124953722,1.14009505,2047.5,2047.2,0.001]
[1773124955813,1.14009505,2047.4,2047.2,0.001]
[1773124956015,2.36106466,2047.6,2047.2,1.09612528]
[1773124956215,1.22085574,2047.8,2047.3,2.04924626]
[1773124956385,1.14009505,2047.7,2047.3,1.09512528]
[1773124956912,1.14009505,2047.7,2047.2,1.09612528]
[1773124957825,1.14009505,2047.6,2047.2,2.31727863]
[1773124961627,1.14009505,2047.6,2047.4,0.001]
[1773124962129,0.002,2047.5,2047.4,0.001]
[1773124968749,1.14209505,2047.5,2047.4,0.001]
[1773124969945,0.002,2047.5,2047.4,0.001]
[1773124972153,1.09399673,2047.5,2047.4,0.001]
[1773124972451,1.09399673,2047.5,2047.2,0.001]
[1773124973916,1.09399673,2047.5,2047.2,1.22217424]
[1773124974116,1.09399673,2047.5,2047.2,1.04984294]
[1773124974321,0.002,2047.3,2047.2,1.04984294]
[1773124974522,1.09399673,2047.5,2047.3,0.001]
[1773124974825,2.31500301,2047.5,2047.3,0.001]
[1773124976254,1.09199673,2047.4,2047.3,0.001]
[1773124979382,0.002,2047.5,2047.3,0.001]
[1773124980074,1.09399673,2047.5,2047.3,0.001]
[1773124980775,1.09199673,2047.4,2047.3,0.001]
[1773124980942,1.09199673,2047.4,2047.1,0.001]
[1773124981284,1.09199673,2047.4,2047.1,1.04984294]
[1773124981971,2.3150035,2047.5,2047.1,2.27107549]
[1773124982166,2.3150035,2047.5,2047.1,1.04984294]
[1773124982762,1.09199673,2047.4,2047.1,1.04984294]
[1773124983177,1.22300677,2047.5,2047.1,1.04984294]
[1773124983469,2.3150035,2047.5,2047.1,1.04984294]
[1773124985271,1.08481175,2047.4,2047.1,1.04984294]
[1773124985874,1.08481175,2047.4,2047.1,0.001]
[1773124986860,1.08481175,2047.4,2047.0,0.001]
[1773124987058,1.08481175,2047.4,2047.3,0.001]
[1773124987564,1.08481175,2047.2,2047.0,0.001]
[1773124989646,2.30605155,2047.1,2047.0,0.001]
[1773124991863,1.08481175,2047.0,2046.8,0.001]
[1773124992076,1.08481175,2047.0,2046.6,0.001]
[1773124992936,1.08481175,2047.0,2046.4,0.001]
[1773124993136,1.08481175,2046.9,2046.4,0.001]
[1773124994066,1.08481175,2046.7,2046.4,0.001]
[1773124994749,1.08481175,2047.0,2046.5,1.09723985]
[1773124995758,1.22122707,2047.2,2046.5,1.09723985]
[1773124995956,1.08481175,2047.1,2046.5,1.09723985]
[1773124997369,2.30605914,2047.1,2046.6,1.22153816]
[1773124997571,2.30605914,2047.1,2046.7,1.09723985]
[1773124998072,1.08481175,2047.0,2046.5,1.09723985]
[1773124998270,1.08481175,2047.0,2046.4,1.09823985]
[1773124999474,1.08481175,2047.0,2046.9,0.001]
[1773124999664,2.30617087,2046.9,2046.6,1.09723985]
[1773125000247,2.30617087,2046.9,2046.7,0.001]
[1773125003358,1.08481175,2046.8,2046.7,0.001]
[1773125003860,2.30623055,2046.8,2046.7,0.001]
[1773125006576,1.08481175,2046.8,2046.7,0.001]
[1773125006979,2.30623055,2046.8,2046.7,0.001]
[1773125016481,2.21393034,2046.8,2046.4,1.09015938]
[1773125024594,2.21393034,2046.8,2046.6,0.001]
[1773125024782,0.002,2046.7,2046.6,0.001]
[1773125025694,0.99451154,2046.7,2046.6,0.001]
[1773125026372,2.21599001,2046.7,2046.6,0.001]
[1773125030900,1.22347847,2046.7,2046.6,0.001]
[1773125031196,0.002,2046.7,2046.6,0.001]
[1773125032296,1.025516,2046.7,2046.6,0.001]
[1773125033497,2.24699447,2046.7,2046.6,0.001]
[1773125033688,1.023516,2046.6,2046.3,0.001]
[1773125034692,1.023516,2046.6,2045.1,5.144]
[1773125034999,1.023516,2046.6,2045.2,1.06026231]
[1773125035000,1.023516,2045.8,2045.2,1.06026231]
[1773125035294,1.483,2045.7,2045.2,1.06026231]
[1773125035523,1.22213531,2045.6,2045.2,1.06026231]
[1773125035878,2.24565131,2045.6,2045.2,1.06026231]
[1773125036481,1.023516,2045.5,2045.2,1.06026231]
[1773125037782,2.24572561,2045.5,2045.2,1.06026231]
[1773125038498,2.24572561,2045.5,2045.0,2.28275513]
[1773125038689,2.24572561,2045.5,2045.1,1.06026231]
[1773125039888,0.95544493,2045.9,2045.4,1.06026231]
[1773125039889,1.492,2045.9,2045.4,1.06026231]
[1773125040286,2.515516,2045.9,2045.4,1.06026231]
[1773125040602,1.023516,2045.8,2045.4,1.06026231]
[1773125041785,1.023516,2045.8,2045.3,1.06026231]
[1773125041984,2.24559157,2045.7,2045.3,1.06026231]
[1773125042305,1.023516,2045.9,2045.4,1.06026231]
[1773125042504,1.023516,2045.7,2045.1,1.06026231]
[1773125043075,1.497,2045.7,2045.1,1.06026231]
[1773125043801,1.023516,2045.8,2045.1,0.95544493]
[1773125044004,1.498,2045.8,2045.2,0.99358137]
[1773125045113,2.72101583,2045.8,2045.3,0.99358137]
[1773125045409,0.97440485,2045.9,2045.3,0.99358137]
[1773125045576,1.499,2046.0,2045.4,0.99358137]
[1773125046085,2.47340485,2046.0,2045.4,0.99358137]
[1773125046489,3.6961818,2046.2,2045.4,0.99358137]
[1773125046784,0.97440485,2046.1,2045.4,0.99358137]
[1773125047177,2.19630123,2046.0,2045.6,0.99358137]
[1773125048607,0.97440485,2046.0,2045.6,0.99358137]
[1773125048801,1.22188011,2046.1,2045.6,0.99358137]
[1773125049218,2.19628496,2046.1,2045.6,0.99358137]
[1773125049511,0.97440485,2046.0,2045.6,0.99358137]
[1773125050010,0.97440485,2046.2,2045.7,0.99358137]
[1773125050201,2.47640485,2046.2,2045.7,0.99358137]
[1773125050581,0.002,2045.9,2045.7,0.99358137]
[1773125050782,4.88702695,2046.3,2045.8,0.99358137]
[1773125050783,1.22171724,2046.3,2045.8,0.99358137]
[1773125050979,0.002,2046.1,2045.8,0.99358137]
[1773125051785,0.002,2046.1,2045.9,0.99358137]
[1773125054127,0.002,2046.1,2046.0,0.99358137]
[1773125055825,0.002,2046.4,2046.1,0.99358137]
[1773125056007,0.002,2046.4,2046.2,0.99358137]
[1773125063206,0.002,2046.4,2046.3,0.001]
[1773125067709,0.002,2046.5,2046.3,0.99458137]
[1773125068932,2.19801538,2046.5,2046.3,0.001]
[1773125069130,0.97440485,2046.4,2046.3,0.001]
[1773125070506,1.22361053,2046.5,2046.1,0.99358137]
[1773125071239,2.19801538,2046.5,2046.1,0.99358137]
[1773125072414,0.97440485,2046.4,2046.1,0.99358137]
[1773125074443,0.002,2046.5,2046.2,0.92904106]
[1773125075916,2.16144827,2046.5,2046.2,0.92904106]
[1773125076726,0.93784407,2046.4,2046.3,0.001]
[1773125077152,0.93984407,2046.4,2046.3,0.001]
[1773125078441,0.002,2046.4,2046.3,0.001]
[1773125081953,0.93984407,2046.4,2046.0,0.001]
[1773125082126,0.93984407,2046.4,2046.0,0.93004106]
[1773125082327,0.93984407,2046.4,2046.0,2.15192445]
[1773125082717,0.93984407,2046.4,2046.0,0.93004106]
[1773125083323,2.16152467,2046.4,2046.0,0.93004106]
[1773125085561,0.93784407,2046.3,2046.0,0.93004106]
[1773125088969,1.2236806,2046.4,2046.1,0.92904106]
[1773125089677,1.2236806,2046.4,2046.2,0.001]
[1773125089845,1.22366522,2046.4,2046.2,0.93004106]
[1773125090045,1.22367029,2046.4,2046.2,0.93004106]
[1773125090249,0.95644367,2046.3,2046.2,0.001]
[1773125096574,0.002,2046.4,2046.2,0.95251079]
[1773125097446,0.002,2046.5,2046.2,0.95251079]
[1773125097447,0.95844367,2046.5,2046.2,0.95251079]
[1773125097679,0.95689362,2046.5,2046.2,0.95251079]
[1773125098980,0.95689362,2046.5,2046.3,1.22171724]
[1773125099278,0.00044995,2046.5,2046.3,0.95151079]
[1773125099487,0.00044995,2046.5,2046.2,0.95251079]
[1773125099658,0.95689362,2046.5,2046.2,0.95251079]
[1773125099988,0.95689362,2046.5,2046.0,0.001]
[1773125099989,0.95644367,2046.4,2046.0,0.001]
[1773125100563,1.2220487,2046.5,2045.7,0.001]
[1773125100564,0.95644367,2046.0,2045.7,0.001]
[1773125100756,0.95644367,2046.0,2045.3,0.001]
[1773125100757,0.95644367,2046.0,2045.3,2.17482255]
[1773125100981,1.2219561,2045.9,2045.3,0.95251079]
[1773125101295,0.95644367,2045.8,2045.4,0.95151079]
[1773125102167,4.8868764,2046.3,2045.4,0.95151079]
[1773125102168,0.95644367,2046.2,2045.4,0.95151079]
[1773125102484,0.95644367,2046.2,2045.5,0.95151079]
[1773125102682,0.95644367,2046.2,2046.0,0.001]
[1773125103062,2.17828033,2046.1,2046.0,0.001]
[1773125103385,0.95644367,2046.1,2046.0,0.001]
[1773125104362,0.002,2046.3,2046.0,0.97597219]
[1773125104580,0.97560736,2046.2,2046.0,0.001]
[1773125105064,0.97560736,2046.2,2045.7,0.001]
[1773125105264,0.97560736,2046.2,2045.7,0.97597219]
[1773125105265,0.97560736,2046.0,2045.7,0.97597219]
[1773125105593,0.97560736,2046.2,2045.7,0.97597219]
[1773125107284,0.002,2046.3,2045.8,0.97497219]
[1773125107477,0.97760736,2046.3,2045.8,0.97497219]
[1773125108291,0.002,2046.3,2045.9,0.97497219]
[1773125109899,0.002,2046.3,2046.0,0.97497219]
[1773125110417,0.97760736,2046.3,2045.9,1.22191084]
[1773125110581,0.97560736,2046.0,2045.7,0.001]
[1773125111302,0.97560736,2046.0,2045.3,2.19824453]
[1773125111867,1.2219561,2045.9,2045.3,2.19824453]
[1773125112065,0.97560736,2045.8,2045.3,0.97597219]
[1773125112302,0.97560736,2045.7,2045.3,0.001]
[1773125113604,0.97560736,2045.6,2045.3,0.001]
[1773125114090,1.22219506,2045.5,2045.3,0.001]
[1773125114406,0.97560736,2045.4,2045.3,0.001]
[1773125116080,2.19778417,2045.6,2045.3,0.001]
[1773125116273,2.19778417,2045.6,2045.5,0.001]
[1773125116498,2.19778417,2045.6,2045.3,0.001]
[1773125116499,0.97560736,2045.5,2045.3,0.001]
[1773125118776,0.97560736,2045.8,2045.3,0.97597219]
[1773125119289,2.19763072,2045.8,2045.3,0.97597219]
[1773125119486,0.97560736,2045.7,2045.3,0.97597219]
[1773125119684,0.97560736,2045.7,2045.3,0.001]
[1773125120810,2.19770069,2045.7,2045.3,0.97597219]
[1773125121009,0.97560736,2045.7,2045.3,0.97597219]
[1773125121710,0.97560736,2045.3,2044.8,0.001]
[1773125121920,0.97560736,2044.9,2044.4,2.19779738]
[1773125124724,2.19816702,2044.9,2044.4,2.19779738]
[1773125125821,0.97560736,2044.8,2044.4,2.19781867]
[1773125127804,0.97560736,2044.7,2044.2,2.19791717]
[1773125128212,0.97560736,2044.7,2044.2,0.97497219]
[1773125128416,0.97560736,2044.7,2044.0,2.19802125]
[1773125128622,0.97560736,2044.7,2043.9,1.22314479]
[1773125128805,0.97560736,2044.7,2043.9,2.19811698]
[1773125129000,0.97560736,2044.7,2044.0,0.97497219]
[1773125129402,0.97560736,2044.7,2044.6,0.001]
[1773125129606,0.97560736,2044.7,2044.2,0.97497219]
[1773125129806,0.97560736,2044.6,2044.2,2.19790598]
[1773125130017,0.97560736,2044.6,2044.4,0.001]
[1773125131094,0.97560736,2044.6,2044.1,1.22403094]
[1773125131629,0.97560736,2044.5,2044.1,0.001]
[1773125132218,0.97560736,2044.4,2044.1,0.001]
[1773125132821,4.89023513,2044.9,2044.1,0.001]
[1773125132822,0.97560736,2045.2,2044.2,0.97497219]
[1773125133030,0.97560736,2045.0,2044.2,0.97497219]
[1773125133225,0.97560736,2045.0,2044.1,0.001]